[Event "Olomouc Chess Summer-GM 2022"]
[Site "Olomouc"]
[Date "2022.08.15"]
[Round "4.2"]
[White "Baum, Jonasz"]
[Black "Stalmach, Richard"]
[Result "0-1"]
[ECO "E70"]
[WhiteElo "2410"]
[BlackElo "2363"]
[Annotator "TA"]
[PlyCount "76"]
[EventDate "2022.08.10"]
[EventCountry "CZE"]
[SourceTitle "playchess.com"]
[Source "ChessBase"]
[SourceQuality "1"]
[TimeControl "40/5400+30:1800+30"]

{[%evp 12,76,36,28,37,29,35,8,2,7,10,-39,-45,-53,-62,-105,-128,-99,-115,-123,-109,-211,-217,-187,-117,-123,-136,-132,-93,-197,-164,-150,-123,-123,-118,-117,-120,-227,-227,-230,-227,-233,-238,-241,-233,-243,-237,-263,-263,-324,-313,-302,-302,-394,-400,-400,-381,-393,-386,-343,-339,-2374,-4906,-1927,-1897,-5061,-4205]} 1. d4 {[%emt 0:00:02]} Nf6 {[%emt 0:00:14]} 2. c4 {[%emt 0:00:06]} g6 {[%emt 0:00:06]} 3. Nc3 {[%emt 0:00:16]} Bg7 {[%emt 0:00:11]} 4. e4 {[%emt 0:00:07]} O-O {[%emt 0:00:12]} 5. Nge2 {[%emt 0:01:27]} d6 {[%emt 0:00:35]} 6. f3 {[%emt 0:00:29]} a6 {[%emt 0:01:41]} 7. Be3 {[%emt 0:00:56]} Nbd7 {[%emt 0:03:52][%cal Ob7b5,Bb8d7,Bd7e5,Be5d3][%mdl 32] E81: King's Indian: Sämisch: 6th move deviations (including 6 Be3 c6).} 8. Qd2 {[%emt 0:03:05]} b5 $1 {[%emt 0:01:32][%cal Bb7b5,Bb5c4,Bc4d3][%mdl 4] is currently scoring better than 8...c5.} 9. Bh6 {[%emt 0:04:26]} Bxh6 {[%emt 0:01:38] The position is equal.} 10. Qxh6 {[%emt 0:00:13]} c5 {[%emt 0:00:48] [#]} 11. Qd2 $146 {[%emt 0:18:24]} (11. h4 $11 {was preferrable.}) ({Predecessor:} 11. h4 b4 12. Nd5 e6 13. Nxf6+ Qxf6 14. h5 Qg7 15. Qd2 a5 16. Rd1 Ra6 17. dxc5 dxc5 {½-½ (37) Basso,P (2561)-Vocaturo,D (2617) Premium Chess Arena INT 2020}) 11... bxc4 $15 {[%emt 0:14:44]} 12. d5 {[%emt 0:01:55]} Ne5 {[%emt 0:08:23]} 13. Nc1 {[%emt 0:00:47] [#] Against Nd3+} e6 $1 {[%emt 0:01:49] Black is more active.} 14. f4 {[%emt 0:09:00]} Nd3+ {[%emt 0:03:55]} 15. Nxd3 {[%emt 0:01:54]} cxd3 16. dxe6 {[%emt 0:01:56]} (16. Bxd3 $17 exd5 17. exd5) 16... c4 $19 {[%emt 0:08:53] And now ...Bb7 would win.} ({Worse is} 16... fxe6 17. Bxd3 d5 18. e5 $11) 17. b3 {[%emt 0:01:59]} d5 {[%emt 0:03:28]} (17... fxe6 18. bxc4 e5 19. Bxd3 $11) (17... Bxe6 $19 18. bxc4 Bxc4 19. Bxd3 Rc8 20. Bxc4 Rxc4) 18. exd5 $17 {[%emt 0:17:58]} Nxd5 {[%emt 0:04:52][%cal Bf6d5,Bd5b4,Bb4c2][%mdl 32]} 19. bxc4 {[%emt 0:06:27]} Nb4 {[%emt 0:00:59]} 20. Rb1 {[%emt 0:10:38]} (20. Rd1 $17 {is the only way for White.}) 20... Rb8 {[%emt 0:12:30][%cal Ba8b8,Bb8b1,Bb1h1][%mdl 32]} 21. Nd5 {[%emt 0:03:21]} Nc2+ {[%emt 0:02:54][%mdl 64] Discovered Attack} 22. Kf2 {[%emt 0:00:04]} Rxb1 {[%emt 0:00:32] Really sharp!} 23. e7 {[%emt 0:00:04]} Qd6 {[%emt 0:00:45]} 24. Bxd3 {[%emt 0:02:44]} Rxh1 $19 {[%emt 0:01:39]} (24... Qc5+ 25. Kg3 Rxh1 26. Bxc2 $11) 25. Bxc2 {[%emt 0:02:16] [#]} Bb7 $1 {[%emt 0:04:50]} 26. exf8=Q+ {[%emt 0:02:27]} Kxf8 {[%emt 0:00:19]} 27. Qd4 {[%emt 0:01:22][%cal Rd4h8]} Bxd5 {[%emt 0:00:08]} 28. cxd5 {[%emt 0:01:16][%mdl 4096] Endgame KQR-KQB} Rc1 {[%emt 0:00:06]} ({But not} 28... Rxh2 $2 29. Bd3) 29. Bd3 {[%emt 0:00:37]} a5 {[%emt 0:01:44]} 30. Kg3 {[%emt 0:04:05]} Rd1 {[%emt 0:04:41] Strongly threatening ...Qa3.} 31. Qh8+ {[%emt 0:01:05]} Ke7 {[%emt 0:00:08]} 32. Bb5 {[%emt 0:03:10]} Rxd5 {[%emt 0:09:35] ...Rg5+ is the strong threat.} 33. Qe8+ {[%emt 0:00:24]} Kf6 {[%emt 0:00:03] White must now prevent ...Qa3+.} 34. Qh8+ {[%emt 0:00:27]} Kf5 {[%emt 0:00:06]} 35. Qc8+ {[%emt 0:00:27]} Qe6 {[%emt 0:00:25]} 36. Qc3 {[%emt 0:01:51]} (36. Qc2+ Kf6 37. Qc3+ Ke7 38. Bc6) 36... Rxb5 {[%emt 0:05:31] Black is clearly winning.} 37. Qd3+ {[%emt 0:00:05]} Kf6 {[%emt 0:00:13] Threatens to win with ...Rb4.} 38. Qxb5 {[%emt 0:00:12]} Qe3+ {[%emt 0:00:04] Weighted Error Value: White=0.69/Black=0.06 (flawless)} 0-1

[Event "Olomouc Chess Summer-GM 2022"]
[Site "Olomouc"]
[Date "2022.08.15"]
[Round "4.3"]
[White "Svanda, Ondrej"]
[Black "Pap, Gyula"]
[Result "1/2-1/2"]
[ECO "A36"]
[WhiteElo "2363"]
[BlackElo "2481"]
[Annotator "TA"]
[PlyCount "26"]
[EventDate "2022.08.10"]
[EventCountry "CZE"]
[SourceTitle "playchess.com"]
[Source "ChessBase"]
[SourceQuality "1"]
[TimeControl "40/5400+30:1800+30"]

{[%evp 13,26,11,10,-2,14,4,10,-38,12,0,0,-49,-34,-42,-54]} 1. c4 {[%emt 0:00:11]} c5 {[%emt 0:02:23]} 2. g3 {[%emt 0:00:14]} g6 {[%emt 0:00:37]} 3. Bg2 {[%emt 0:00:06]} Bg7 {[%emt 0:00:04]} 4. Nc3 {[%emt 0:00:03]} Nc6 {[%emt 0:00:33]} 5. e4 {[%emt 0:01:07]} e6 {[%emt 0:02:42]} 6. Nge2 {[%emt 0:00:36]} Nge7 {[%emt 0:00:22]} 7. d3 {[%emt 0:01:17]} d6 {[%emt 0:03:06]} 8. Rb1 {[%emt 0:01:56] A36: Symmetrical English vs ...g6: 4 Bg2 Bg7.} Nd4 {[%emt 0:30:03] [#]} 9. Nxd4 $146 {[%emt 0:00:13]} ({Predecessor:} 9. a3 Nec6 10. O-O h5 11. h4 b6 12. Nxd4 Nxd4 13. e5 Rb8 14. Bg5 Qd7 15. exd6 {½-½ (40) Li,H (2330)-Farkas,T (2316) Budapest 2018}) 9... cxd4 {[%emt 0:04:17]} 10. Ne2 {[%emt 0:10:34]} (10. Nb5 $11 {deserves consideration.}) 10... Qa5+ {[%emt 0:04:43]} ({Better is} 10... O-O $15) 11. b4 {[%emt 0:18:04]} Qxa2 {[%emt 0:01:10]} 12. Bb2 {[%emt 0:00:28]} (12. Bd2 $11 Qa3 13. Nf4) 12... e5 $15 {[%emt 0:00:57][%cal Ob7b5]} 13. O-O {[%emt 0:02:12]} O-O {[%emt 0:03:53] Weighted Error Value: White=0.21 (precise) /Black=0.17 (very precise)} 1/2-1/2

[Event "Olomouc Chess Summer-GM 2022"]
[Site "Olomouc"]
[Date "2022.08.15"]
[Round "4.4"]
[White "Sorm, Daniel"]
[Black "Winkelman, Albert"]
[Result "1-0"]
[ECO "D17"]
[WhiteElo "2308"]
[BlackElo "2278"]
[Annotator "TA"]
[PlyCount "95"]
[EventDate "2022.08.10"]
[EventCountry "CZE"]
[SourceTitle "playchess.com"]
[Source "ChessBase"]
[SourceQuality "1"]
[TimeControl "40/5400+30:1800+30"]

{[%evp 13,95,11,0,0,12,-10,0,0,0,0,8,14,13,-24,-25,-50,-42,-27,29,21,79,0,0,0,0,0,0,-54,-13,-15,-16,-22,0,0,3,0,0,0,0,-2,52,49,71,86,163,37,135,159,143,157,140,138,341,324,402,397,364,237,643,593,591,0,510,545,1258,1259,967,406,29948,29962,2315,2048,29965,29955,29952,29950,29967,29964,29972,29973,29972,29972,29968,4451]} 1. d4 {[%emt 0:00:11]} d5 {[%emt 0:00:27]} 2. c4 {[%emt 0:00:37]} c6 {[%emt 0:00:18]} 3. Nf3 {[%emt 0:00:13]} Nf6 {[%emt 0:00:21]} 4. Nc3 {[%emt 0:03:28]} dxc4 {[%emt 0:00:22]} 5. a4 {[%emt 0:02:38]} Bf5 {[%emt 0:00:16]} 6. Nh4 {[%emt 0:00:03]} Bg4 {[%emt 0:03:59]} 7. h3 {[%emt 0:02:00]} Bh5 {[%emt 0:01:18]} 8. g4 {[%emt 0:04:56] D17: Slav Defence: 5 a4 Bf5: Lines with 6 Nh4 and 6 Ne5.} Bg6 {[%emt 0:00:10]} 9. Bg2 {[%emt 0:00:53]} e6 {[%emt 0:02:53]} 10. Nxg6 {[%emt 0:05:29] The position is equal.} hxg6 {[%emt 0:00:10]} 11. e3 {[%emt 0:00:14]} Na6 {[%emt 0:11:52]} 12. O-O {[%emt 0:11:33]} Bd6 {[%emt 0:04:33] [#]} 13. f4 $146 {[%emt 0:02:21]} ({Predecessor:} 13. Qe2 Qe7 14. Qxc4 Nb4 15. f4 g5 16. fxg5 Nxg4 17. hxg4 Qxg5 18. Ne4 Bh2+ 19. Kf2 {1-0 (30) Korobkin,M (2333)-Slugin,A (2104) Novosibirsk 2008}) 13... Nb4 {[%emt 0:07:59]} 14. Bd2 {[%emt 0:00:27]} a5 {[%emt 0:07:15]} 15. Qe2 {[%emt 0:00:57]} Qc7 {[%emt 0:25:05]} (15... Nfd5 $142) 16. Qxc4 {[%emt 0:14:14]} g5 {[%emt 0:01:04]} (16... O-O-O $11 {keeps the balance.}) 17. Rac1 {[%emt 0:06:12]} ({Better is} 17. fxg5 $16 Nxg4 18. g6 (18. hxg4 Bh2+ 19. Kh1 Bf4+ 20. Kg1 Bh2+ 21. Kh1 Bf4+ 22. Kg1 Bh2+ $11)) 17... gxf4 $11 {[%emt 0:06:10]} 18. Nb5 {[%emt 0:02:35]} cxb5 {[%emt 0:01:53]} 19. Qxc7 {[%emt 0:00:12]} Bxc7 {[%emt 0:00:12]} 20. Bxb4 {[%emt 0:00:37]} (20. Rxc7 $11 Nbd5 21. Rxb7 fxe3 22. Be1) 20... axb4 {[%emt 0:13:41]} (20... Kd7 $5 {[%cal Ra5b4]} 21. Bd2 bxa4 $11) 21. Rxc7 {[%emt 0:00:47]} bxa4 {[%emt 0:01:04]} 22. Bxb7 {[%emt 0:08:11]} Rb8 {[%emt 0:01:13]} (22... Nd5 $5 {[%cal Rd5c7]} 23. Bc6+ Kf8 24. Bxa8 Nxc7 $15) 23. g5 {[%emt 0:03:25][%cal Bg4g5,Bg5g6][%mdl 32]} Ng8 {[%emt 0:04:09]} 24. Bc6+ {[%emt 0:01:34]} Kf8 {[%emt 0:00:05]} 25. Rxf4 {[%emt 0:11:08][%csl Gf4][%cal Rc7f7] [#]} Ne7 {[%emt 0:00:08]} 26. g6 {[%emt 0:00:19]} f6 {[%emt 0:00:41]} (26... f5 $11 27. Bxa4 Rxh3) 27. Bxa4 $14 {[%emt 0:00:19]} Rxh3 {[%emt 0:01:50]} 28. Re4 {[%emt 0:00:21]} Rb6 {[%emt 0:01:14]} (28... e5 $16) 29. Bb3 {[%emt 0:04:46]} (29. Ra7 $18 {Intending Ra8+ and mate.} Nxg6 30. Ra8+ Ke7 31. Rg4) 29... Rg3+ {[%emt 0:01:36]} (29... f5 $14 30. Re5 (30. Rxe6 Rxe6 31. Bxe6 Rxe3 $11) 30... Nxg6) 30. Kf2 $16 {[%emt 0:00:29]} Rxg6 {[%emt 0:00:11]} 31. Rxe6 {[%emt 0:01:18] White is more active.} Rxe6 {[%emt 0:00:10]} 32. Bxe6 {[%emt 0:00:05][%mdl 4096] Endgame Black must now prevent d5. KRB-KRN} Rg5 {[%emt 0:00:18] [#] Against d5} (32... f5 $16 {was necessary.} 33. d5 Rf6) 33. e4 $1 $18 {[%emt 0:03:59]} Ra5 {[%emt 0:00:41]} 34. d5 {[%emt 0:01:08] And now d6 would win.} Ra6 {[%emt 0:00:07]} 35. Rb7 {[%emt 0:06:00] Hoping for Rb8+.} g6 $2 {[%emt 0:00:36]} (35... Ng6 36. Rf7+ (36. Rxb4 Nf4 $16) 36... Ke8 37. Rxg7 Ne5) 36. Rb8+ {[%emt 0:00:30]} Kg7 {[%emt 0:00:07]} 37. Rb7 {[%emt 0:00:02] Threatens to win with e5.} Kf8 {[%emt 0:00:06]} 38. Rxb4 {[%emt 0:00:32]} f5 {[%emt 0:02:25]} 39. Rb8+ {[%emt 0:03:02]} Kg7 {[%emt 0:00:05]} 40. Rb7 {[%emt 0:00:03]} (40. e5 $142 {aiming for Rb7.} Ra7 41. d6) 40... Rxe6 {[%emt 0:01:18]} (40... Kf6 $18 41. e5+ Kxe5) 41. dxe6 {[%emt 0:30:13] KR-KN} Kf6 {[%emt 0:30:10]} 42. exf5 {[%emt 0:00:00]} gxf5 {[%emt 0:00:00]} 43. Rb6 {[%emt 0:00:00] White mates.} Nd5 {[%emt 0:00:00]} 44. Rc6 {[%emt 0:00:00]} Nf4 {[%emt 0:00:00]} 45. Ke3 {[%emt 0:00:00]} Nxe6 {[%emt 0:00:00]} 46. b4 {[%emt 0:00:00][%cal Bb2b4,Bb4b5][%mdl 32]} Ke7 {[%emt 0:00:00]} 47. b5 {[%emt 0:00:00]} Kd7 {[%emt 0:00:00]} 48. Kd3 {[%emt 0:00:00] Weighted Error Value: White=0.39/Black=0.66} (48. Rc2 $142 Nc7 49. Rc5 Ne6 50. Rxf5 Kc8 51. Re5 Kd7 52. Ke4 Nf8 53. Rf5) 1-0

[Event "Olomouc Chess Summer-GM 2022"]
[Site "Olomouc"]
[Date "2022.08.15"]
[Round "4.5"]
[White "Krejci, Jan"]
[Black "Frank, Adam"]
[Result "1-0"]
[ECO "B23"]
[WhiteElo "2511"]
[BlackElo "2313"]
[Annotator "TA"]
[PlyCount "121"]
[EventDate "2022.08.10"]
[EventCountry "CZE"]
[SourceTitle "playchess.com"]
[Source "ChessBase"]
[SourceQuality "1"]
[TimeControl "40/5400+30:1800+30"]

{[%evp 9,121,11,9,9,15,10,45,48,52,37,73,33,70,46,58,19,52,6,51,21,35,21,40,32,36,20,27,13,21,21,9,0,0,-59,-70,-70,-58,-114,-123,-109,-112,-354,-84,-75,-70,-71,-56,-238,-249,-290,-98,-83,0,0,0,0,0,0,0,0,58,58,89,-23,-18,-19,0,0,0,0,17,0,35,29,25,22,22,29,52,49,231,171,164,164,164,164,164,164,270,261,258,164,184,123,123,124,586,586,586,579,579,576,2393,2469,1909,1875,1166,1020,1830,1608,1091,1084,859,832]} 1. e4 c5 2. Nc3 d6 3. Nge2 Nf6 4. g3 Nc6 5. Bg2 g6 6. d3 {B24: Closed Sicilian: 3 g3 sidelines.} Rb8 7. O-O {[#]} e6 $146 ({Predecessor:} 7... Bd7 8. Bg5 Bg7 9. Nd5 Nxd5 10. exd5 Ne5 11. b3 Qc8 12. d4 cxd4 13. Nxd4 h6 {½-½ (67) Muljadi,P (2322)-Gleyzer,L (2345) ICCF email 2018}) 8. d4 {White is slightly better.} cxd4 9. Nxd4 e5 10. Nde2 {White is more active.} (10. Ndb5 {with more complications.} Bg4 11. Bf3 Bh3 12. Bg5) 10... Be7 11. Bg5 Be6 12. Qd2 b5 13. Rad1 (13. h4 $14) 13... O-O (13... b4 $5 {[%cal Rb4c3]} 14. Nd5 Nxd5 15. exd5 Bxg5 $11) 14. Bh6 Re8 15. h3 Qc8 16. Kh2 Bc4 17. b3 b4 $1 18. bxc4 bxc3 19. Qxc3 Qa6 20. f4 Rb4 21. Qe3 ({White should try} 21. c5 $1 $11 dxc5 22. fxe5) 21... Rxc4 $15 22. Nc3 Qb6 23. Qd3 (23. Qe1 $15) 23... Qc5 $17 24. Nd5 Nxd5 (24... Rxc2 25. Nxe7+ Nxe7 26. fxe5 Rxg2+ 27. Kxg2 Qxe5 28. Qf3 (28. Qxd6 Qxe4+ 29. Kg1 Nf5 $18) 28... Qxe4 29. Rxd6 Qxf3+ 30. Kxf3 $18) 25. exd5 (25. Qxd5 $17 Rxc2 26. fxe5 Qxd5 27. Rxd5 Nxe5 28. Rd2 Rxd2 29. Bxd2) 25... Nb4 $2 (25... Rxc2 26. dxc6 Qxc6 27. Rd2 Rxd2 28. Qxd2 $18) (25... e4 $1 $19 {[%cal Re4d3]} 26. Qe2 (26. Bxe4 $2 Nb4 $19) 26... Nd4) 26. Qb3 e4 (26... Nxc2 27. fxe5 Qc7 28. Rc1 $16 (28. Qf3 Bf8 $16)) (26... Rxc2 $2 27. a3 Nc6 28. dxc6 (28. Qa4 exf4 29. Qxc6 fxg3+ 30. Kh1 Rc8 $18) 28... Qxc6 29. Rd5 $18) 27. f5 $1 (27. Qb2 $2 Bf8 28. Bxf8 Rxf8 $19) 27... Nxd5 (27... Rxc2 28. Rc1 $16) 28. Rd2 $2 ({Better is} 28. Bxe4 $15 Rxe4 29. Rxd5 Re2+ 30. Kh1 Qxc2 31. Qxc2 Rxc2 32. Re1) 28... Bf8 $19 29. Qb7 {[%cal Of5g6]} Qc7 $2 30. Qb5 $17 {[#]} Rb8 31. Qxd5 $11 Bxh6 32. fxg6 hxg6 33. Rdf2 {[%cal Rf2f7]} Rc5 34. Qxe4 Rf8 ({Black should play} 34... f5 $11 35. Qe6+ Kh7) 35. Qd3 $1 $14 {Black must now prevent Bd5.} Rc3 {[#]} 36. Qd1 (36. Rxf7 $1 $16 Rxd3 37. Rxc7) 36... d5 $11 37. Qg4 Rxc2 38. Bxd5 {Threatening mate with Qxg6+.} Rxf2+ 39. Rxf2 {Qxg6+ is the strong threat.} Qd6 40. Qf3 {[%cal Rd5f7]} Qe7 41. h4 Kg7 42. Kg2 f5 43. Re2 Qc5 44. Bb3 {aiming for Qb7+.} Rc8 $2 (44... Rf6 $14) 45. Rc2 Qxc2+ 46. Bxc2 Rxc2+ $18 {[%mdl 4096] Endgame KQ-KRB} 47. Kh3 Rc7 {Prevents Qb7.} 48. Qd3 {[%cal Oh4h5]} Re7 (48... Rf7 $142 49. Qd4+ Kh7) 49. Qd4+ Kf7 50. Qd5+ Kg7 51. h5 (51. Qd6 $18 Rf7 52. Qe5+ Kh7 53. Qe6) 51... Bg5 $16 52. Qd4+ Bf6 $2 {[%mdl 8192]} (52... Kh6 $16 {is a better chance.}) 53. h6+ $1 $18 {White is clearly winning.} Kf7 54. Qd5+ Re6 55. h7 {Threatens to win with Qb7+.} Be5 56. Qxe5 Rxe5 57. h8=Q Re7 58. Qd8 g5 59. Qd5+ Kg6 60. Qd6+ Kf7 61. Qh6 {Never resign too early!  Weighted Error Value: White=0.27 (precise) /Black=0.45} 1-0

[Event "Olomouc Chess Summer-GM 2022"]
[Site "Olomouc"]
[Date "2022.08.16"]
[Round "5.1"]
[White "Frank, Adam"]
[Black "Mirzoev, Azer"]
[Result "1/2-1/2"]
[ECO "C70"]
[WhiteElo "2313"]
[BlackElo "2424"]
[Annotator "TA"]
[PlyCount "92"]
[EventDate "2022.08.10"]
[EventCountry "CZE"]
[SourceTitle "playchess.com"]
[Source "ChessBase"]
[SourceQuality "1"]
[TimeControl "40/5400+30:1800+30"]

{[%evp 15,92,43,53,34,35,32,41,30,45,51,55,48,63,18,28,7,1,8,8,6,5,0,1,0,11,0,0,0,0,0,26,21,26,28,24,29,24,2,2,2,2,2,3,0,0,0,0,0,0,0,0,0,0,0,0,0,0,0,0,0,0,0,0,0,0,0,8,8,8,8,8,8,8,8,8,8,8,0,0]} 1. e4 {[%emt 0:00:02]} e5 {[%emt 0:01:01]} 2. Nf3 {[%emt 0:00:06]} Nc6 {[%emt 0:00:06]} 3. Bb5 {[%emt 0:00:04]} a6 {[%emt 0:00:09]} 4. Ba4 {[%emt 0:00:04]} Nge7 {[%emt 0:00:06]} 5. O-O {[%emt 0:02:13]} d6 {[%emt 0:00:07]} 6. c3 {[%emt 0:02:58]} Bd7 {[%emt 0:00:10]} 7. d4 {[%emt 0:00:20]} g6 {[%emt 0:00:25]} 8. Be3 {[%emt 0:05:41]} Bg7 {[%emt 0:00:09]} 9. dxe5 {[%emt 0:01:46] C76: Ruy Lopez: Deferred Steinitz: 5 c3 Bd7 6 d4 g6.} Nxe5 {[%emt 0:01:14]} 10. Nxe5 {[%emt 0:08:06]} dxe5 {[%emt 0:03:16]} 11. Na3 {[%emt 0:02:04] White is slightly better.} Bxa4 {[%emt 0:06:00]} 12. Qxa4+ {[%emt 0:00:05]} Qd7 {[%emt 0:00:07]} 13. Qb3 {[%emt 0:03:36]} Qc6 {[%emt 0:03:49] [#]} 14. Qb4 $146 {[%emt 0:03:26] White is more active.} ({Predecessor:} 14. f3 O-O 15. Nc2 a5 16. a4 Rfd8 17. Rad1 Bf8 18. Na3 Kg7 19. Nc4 Rxd1 20. Rxd1 {1-0 (31) Janetschek,K (2345)-Rolletschek,H (2370) Austria 1992}) 14... a5 {[%emt 0:01:34]} 15. Qc5 {[%emt 0:00:16]} Qxc5 {[%emt 0:02:01]} 16. Bxc5 {[%emt 0:00:05]} b6 {[%emt 0:01:07]} 17. Be3 {[%emt 0:00:04]} O-O-O {[%emt 0:01:06]} 18. Rad1 {[%emt 0:00:53]} Nc6 {[%emt 0:01:32]} 19. f3 {[%emt 0:05:18]} a4 {[%emt 0:00:40]} 20. b4 {[%emt 0:03:44]} axb3 {[%emt 0:00:11]} 21. axb3 {[%emt 0:00:05]} h5 {[%emt 0:02:43]} 22. b4 {[%emt 0:00:32]} Bh6 {[%emt 0:01:13]} 23. Rxd8+ {[%emt 0:00:58]} Nxd8 {[%emt 0:00:20]} 24. Bxh6 {[%emt 0:04:24]} Rxh6 $11 {[%emt 0:00:06][%mdl 4096] Endgame KRN-KRN} 25. Nc4 {[%emt 0:00:03]} f6 {[%emt 0:00:08]} 26. f4 {[%emt 0:10:28]} exf4 {[%emt 0:05:34] The position is equal.} 27. Rxf4 {[%emt 0:00:25]} g5 $1 {[%emt 0:00:06]} 28. Rf5 {[%emt 0:02:00]} Nf7 {[%emt 0:00:33]} 29. e5 {[%emt 0:01:31]} Kd7 {[%emt 0:00:07]} (29... Nxe5 30. Nxe5 fxe5 31. Rxg5 $16) 30. exf6 {[%emt 0:04:32]} Ke6 {[%emt 0:00:06][%csl LRf5,LRf6] Against Ne5} 31. Ne3 {[%emt 0:00:25]} Rxf6 {[%emt 0:02:37]} 32. Rxf6+ {[%emt 0:00:20]} Kxf6 {[%emt 0:00:02] KN-KN} 33. Nd5+ {[%emt 0:00:10]} Ke5 {[%emt 0:00:19]} 34. Nxc7 {[%emt 0:00:15]} Ke4 {[%emt 0:00:35]} 35. c4 {[%emt 0:01:02]} Kd4 {[%emt 0:04:33]} 36. c5 {[%emt 0:00:33]} bxc5 {[%emt 0:00:06]} 37. Ne6+ {[%emt 0:00:03]} Kc4 {[%emt 0:00:14]} 38. bxc5 {[%emt 0:00:42] [#] c6 is the strong threat.} Kd5 {[%emt 0:00:06]} 39. Ng7 {[%emt 0:00:05]} h4 {[%emt 0:05:40]} ({Resist} 39... Kxc5 40. Nxh5 Kd5 41. Kf2 $16) 40. Kf2 {[%emt 0:02:32]} Ne5 {[%emt 0:00:07]} 41. h3 {[%emt 0:30:55]} g4 {[%emt 0:30:29]} 42. hxg4 {[%emt 0:02:05]} Nxg4+ {[%emt 0:00:04]} 43. Kf3 {[%emt 0:00:07]} Ne5+ {[%emt 0:00:04]} 44. Kf4 {[%emt 0:00:28]} Nd3+ {[%emt 0:00:08]} 45. Kg4 {[%emt 0:00:06]} Ne1 {[%emt 0:00:07]} 46. Kxh4 {[%emt 0:00:03]} Nxg2+ {Weighted Error Value: White=0.05 (flawless) /Black=0.02 (flawless)} 1/2-1/2